fUST/lending_fUST_20250515
["ID","MTS","AMOUNT","RATE_DAILY","PERIOD"]
[361123168,1747287056822,-450.0,0.00024657,2]
[361123169,1747287056832,-450.0,0.00024657,2]
[361123170,1747287056841,-402.66735484,0.00024657,2]
[361123171,1747287056851,-450.0,0.00024657,2]
[361123172,1747287056861,-401.05044979,0.00024657,2]
[361123173,1747287056870,-410.19159187,0.00024657,2]
[361123174,1747287056879,-401.09026583,0.00024657,2]
[361123175,1747287056888,-403.17108912,0.00024657,2]
[361123176,1747287056897,-450.0,0.00024657,2]
[361123177,1747287056907,-450.0,0.00024657,2]
[361123178,1747287056916,-400.78012797,0.00024657,2]
[361123179,1747287056926,-400.68537429,0.00024657,2]
[361123180,1747287056936,-463.12674276,0.00024657,2]
[361123181,1747287056948,-450.0,0.00024657,2]
[361123182,1747287056958,-357.97973424,0.00024657,2]
[361123183,1747287056969,-450.0,0.00024657,2]
[361123184,1747287056979,-401.78379711,0.00024657,2]
[361123185,1747287056988,-450.0,0.00024657,2]
[361123186,1747287056997,-450.0,0.00024657,2]
[361123187,1747287057007,-401.00883828,0.00024657,2]
[361123188,1747287057017,-401.64122963,0.00024657,2]
[361123189,1747287057026,-403.73908556,0.00024657,2]
[361123190,1747287057036,-450.0,0.00024657,2]
[361123191,1747287057045,-450.0,0.00024657,2]
[361123192,1747287057056,-162.13611587,0.00024657,2]
[361123193,1747287057065,-450.0,0.00024657,2]
[361123194,1747287057075,-450.0,0.00024657,2]
[361123195,1747287057087,-474.54454497,0.00024657,2]
[361123196,1747287057096,-450.0,0.00024657,2]
[361123197,1747287057106,-400.0,0.00024657,2]
[361123198,1747287057115,-450.0,0.00024657,2]
[361123199,1747287057125,-450.0,0.00024657,2]
[361123200,1747287057136,-450.0,0.00024657,2]
[361123201,1747287057145,-450.0,0.00024657,2]
[361123202,1747287057155,-401.15783761,0.00024657,2]
[361123203,1747287057164,-382.12770222,0.00024657,2]
[361123204,1747287057175,-450.0,0.00024657,2]
[361123205,1747287057185,-421.00608139,0.00024657,2]
[361123206,1747287057194,-450.0,0.00024657,2]
[361123207,1747287057205,-450.0,0.00024657,2]
[361123208,1747287057215,-405.37416722,0.00024657,2]
[361123209,1747287057224,-450.0,0.00024657,2]
[361123210,1747287057234,-400.64241899,0.00024657,2]
[361123211,1747287057330,-450.0,0.00024657,2]
[361123212,1747287057340,-450.0,0.00024657,2]
[361123213,1747287057350,-488.98912428,0.00024657,2]
[361123214,1747287057359,-450.0,0.00024657,2]
[361123215,1747287057369,-450.0,0.00024657,2]
[361123216,1747287057378,-593.9514789,0.00024657,2]
[361123217,1747287057387,-500.0,0.00024657,2]
[361123218,1747287057398,-1098.12,0.00024657,2]
[361123219,1747287057407,-1098.12,0.00024657,2]
[361123220,1747287057416,-1098.12,0.00024657,2]
[361123221,1747287057426,-500.0,0.00024657,2]
[361123222,1747287057436,-1098.12,0.00024657,2]
[361123223,1747287057445,-513.51075829,0.00024657,2]
[361123224,1747287057455,-1098.12,0.00024657,2]
[361123225,1747287057464,-1098.12,0.00024657,2]
[361123226,1747287057473,-1098.12,0.00024657,2]
[361123227,1747287057483,-1098.12,0.00024657,2]
[361123228,1747287057492,-264.53205961,0.00024657,2]
[361123229,1747287057502,-1098.12,0.00024657,2]
[361123230,1747287057512,-1098.12,0.00024657,2]
[361123231,1747287057521,-1098.12,0.00024657,2]
[361123232,1747287057530,-1098.12,0.00024657,2]
[361123233,1747287057539,-1098.12,0.00024657,2]
[361123234,1747287057549,-1098.12,0.00024657,2]
[361123235,1747287057559,-1098.12,0.00024657,2]
[361123236,1747287057568,-1098.12,0.00024657,2]
[361123237,1747287057578,-1098.12,0.00024657,2]
[361123238,1747287057587,-1098.12,0.00024657,2]
[361123239,1747287057597,-1098.12,0.00024657,2]
[361123240,1747287057606,-450.0,0.00024657,2]
[361123241,1747287057616,-1098.12,0.00024657,2]
[361123242,1747287057626,-400.41460849,0.00024657,2]
[361123243,1747287057636,-1098.12,0.00024657,2]
[361123244,1747287057646,-1098.12,0.00024657,2]
[361123245,1747287057655,-1098.12,0.00024657,2]
[361123246,1747287057665,-1098.31165026,0.00024657,2]
[361123247,1747287057674,-450.0,0.00024657,2]
[361123248,1747287057683,-450.0,0.00024657,2]
[361123249,1747287057693,-400.66158087,0.00024657,2]
[361123250,1747287057703,-450.0,0.00024657,2]
[361123251,1747287057713,-450.0,0.00024657,2]
[361123252,1747287057721,-405.3937239,0.00024657,2]
[361123253,1747287057730,-573.90453187,0.00024657,2]
[361123254,1747287057740,-450.0,0.00024657,2]
[361123255,1747287057749,-450.0,0.00024657,2]
[361123256,1747287057758,-400.22934624,0.00024657,2]
[361123257,1747287057767,-450.0,0.00024657,2]
[361123258,1747287057776,-450.0,0.00024657,2]
[361123259,1747287057786,-450.0,0.00024657,2]
[361123260,1747287057795,-450.0,0.00024657,2]
[361123261,1747287057805,-450.0,0.00024657,2]
[361123262,1747287057815,-401.22161877,0.00024657,2]
[361123263,1747287057824,-450.0,0.00024657,2]
[361123264,1747287057834,-450.0,0.00024657,2]
[361123265,1747287057843,-450.0,0.00024657,2]
[361123266,1747287057852,-450.0,0.00024657,2]
[361123267,1747287057861,-450.0,0.00024657,2]
[361123268,1747287057871,-450.0,0.00024657,2]
[361123269,1747287057880,-450.0,0.00024657,2]
[361123270,1747287057890,-400.99236051,0.00024657,2]
[361123271,1747287057899,-542.44075631,0.00024657,2]
[361123272,1747287057908,-450.0,0.00024657,2]
[361123273,1747287057918,-450.0,0.00024657,2]
[361123274,1747287057927,-450.0,0.00024657,2]
[361123275,1747287057936,-550.00668702,0.00024657,2]
[361123276,1747287057947,-450.0,0.00024657,2]
[361123277,1747287057956,-450.0,0.00024657,2]
[361123278,1747287057966,-403.30556391,0.00024657,2]
[361123279,1747287057975,-450.0,0.00024657,2]
[361123280,1747287057985,-450.0,0.00024657,2]
[361123281,1747287057994,-450.0,0.00024657,2]
[361123282,1747287058003,-402.4125288,0.00024657,2]
[361123283,1747287058012,-455.93025187,0.00024657,2]
[361123284,1747287058022,-450.0,0.00024657,2]
[361123285,1747287058031,-539.17042104,0.00024657,2]
[361123286,1747287058042,-450.0,0.00024657,2]
[361123287,1747287058051,-402.74335367,0.00024657,2]
[361123288,1747287058060,-450.0,0.00024657,2]
[361123289,1747287058069,-450.0,0.00024657,2]
[361123290,1747287058079,-450.0,0.00024657,2]
[361123291,1747287058088,-786.65,0.00024657,2]
[361123292,1747287058098,-401.44848117,0.00024657,2]
[361123293,1747287058108,-274.09066979,0.00024657,2]
[361123294,1747287058118,-401.62678439,0.00024657,2]
[361123295,1747287058127,-401.64629966,0.00024657,2]
[361123296,1747287058137,-450.0,0.00024657,2]
[361123297,1747287058146,-403.65073792,0.00024657,2]
[361123298,1747287058156,-503.93904324,0.00024657,2]
[361123299,1747287058165,-450.0,0.00024657,2]
[361123300,1747287058175,-403.81462006,0.00024657,2]
[361123301,1747287058184,-450.0,0.00024657,2]
[361123302,1747287058194,-405.45897177,0.00024657,2]
[361123303,1747287058204,-450.0,0.00024657,2]
[361123304,1747287058214,-450.0,0.00024657,2]
[361123305,1747287058223,-400.65849172,0.00024657,2]
[361123306,1747287058234,-450.0,0.00024657,2]
[361123307,1747287058243,-450.0,0.00024657,2]
[361123308,1747287058253,-450.0,0.00024657,2]
[361123309,1747287058262,-400.95449768,0.00024657,2]
[361123310,1747287058272,-450.0,0.00024657,2]
[361123311,1747287058282,-450.0,0.00024657,2]
[361123312,1747287058292,-400.99409716,0.00024657,2]
[361123313,1747287058301,-450.0,0.00024657,2]
[361123314,1747287058313,-400.19386807,0.00024657,2]
[361123315,1747287058322,-450.0,0.00024657,2]
[361123316,1747287058332,-403.97107739,0.00024657,2]
[361123317,1747287058342,-450.0,0.00024657,2]
[361123318,1747287058352,-402.19491668,0.00024657,2]
[361123319,1747287058361,-401.63341282,0.00024657,2]
[361123320,1747287058370,-450.0,0.00024657,2]
[361123321,1747287058379,-401.48640978,0.00024657,2]
[361123322,1747287058388,-400.97770634,0.00024657,2]
[361123323,1747287058397,-1004.92510082,0.00024657,2]
[361123324,1747287058406,-450.0,0.00024657,2]
[361123325,1747287058416,-450.0,0.00024657,2]
[361123326,1747287058425,-508.49341999,0.00024657,2]
[361123327,1747287058434,-450.0,0.00024657,2]
[361123328,1747287058444,-407.2678846,0.00024657,2]
[361123329,1747287058454,-404.0103899,0.00024657,2]
[361123330,1747287058463,-450.0,0.00024657,2]
[361123331,1747287058473,-450.0,0.00024657,2]
[361123332,1747287058483,-404.02180774,0.00024657,2]
[361123333,1747287058492,-401.96999432,0.00024657,2]
[361123334,1747287058501,-450.0,0.00024657,2]
[361123335,1747287058512,-450.0,0.00024657,2]
[361123336,1747287058523,-530.06327976,0.00024657,2]
[361123337,1747287058532,-450.0,0.00024657,2]
[361123338,1747287058541,-450.0,0.00024657,2]
[361123339,1747287058553,-406.24177746,0.00024657,2]
[361123340,1747287058563,-230.04697997,0.00024657,2]
[361123341,1747287058572,-403.78510267,0.00024657,2]
[361123342,1747287058581,-404.44620668,0.00024657,2]
[361123343,1747287058590,-401.28792562,0.00024657,2]
[361123344,1747287058599,-400.0,0.00024657,2]
[361123345,1747287058608,-400.85571196,0.00024657,2]
[361123346,1747287058618,-450.0,0.00024657,2]
[361123347,1747287058627,-400.85395784,0.00024657,2]
[361123348,1747287058636,-401.12213207,0.00024657,2]
[361123349,1747287058645,-450.0,0.00024657,2]
[361123350,1747287058654,-307.28482399,0.00024657,2]
[361123351,1747287058663,-450.0,0.00024657,2]
[361123352,1747287058672,-450.0,0.00024657,2]
[361123353,1747287058681,-450.0,0.00024657,2]
[361123354,1747287058694,-405.96307431,0.00024657,2]
[361123355,1747287058704,-450.0,0.00024657,2]
[361123356,1747287058714,-450.0,0.00024657,2]
[361123357,1747287058723,-358.739935,0.00024657,2]
[361123358,1747287058732,-450.0,0.00024657,2]
[361123359,1747287058743,-401.18430818,0.00024657,2]
[361123360,1747287058753,-400.99983387,0.00024657,2]
[361123361,1747287058762,-407.24407662,0.00024657,2]
[361123362,1747287058772,-450.0,0.00024657,2]
[361123363,1747287058781,-450.0,0.00024657,2]
[361123364,1747287058792,-472.16496626,0.00024657,2]
[361123365,1747287058801,-450.0,0.00024657,2]
[361123366,1747287058812,-461.93181415,0.00024657,2]
[361123367,1747287058823,-403.65334259,0.00024657,2]
[361123368,1747287058834,-455.74224175,0.00024657,2]
[361123369,1747287058846,-450.0,0.00024657,2]
[361123370,1747287058856,-401.71854613,0.00024657,2]
[361123371,1747287058867,-450.0,0.00024657,2]
[361123372,1747287058877,-406.84331052,0.00024657,2]
[361123373,1747287058886,-403.43138399,0.00024657,2]
[361123374,1747287058895,-450.0,0.00024657,2]
[361123375,1747287058905,-621.73,0.00024657,2]
[361123376,1747287058914,-310.54866125,0.00024657,2]
[361123377,1747287058923,-402.22291583,0.00024657,2]
[361123378,1747287058933,-401.25400043,0.00024657,2]
[361123379,1747287058942,-450.0,0.00024657,2]
[361123380,1747287058953,-450.0,0.00024657,2]
[361123381,1747287058962,-401.42132255,0.00024657,2]
[361123382,1747287058971,-450.0,0.00024657,2]
[361123383,1747287058982,-450.0,0.00024657,2]
[361123384,1747287058991,-400.18144635,0.00024657,2]
[361123385,1747287059000,-401.52965941,0.00024657,2]
[361123386,1747287059014,-410.69479237,0.00024657,2]
[361123387,1747287059024,-450.0,0.00024657,2]
[361123388,1747287059034,-512.71649638,0.00024657,2]
[361123389,1747287059043,-221.90167682,0.00024657,2]
[361123390,1747287059052,-400.57506642,0.00024657,2]
[361123391,1747287059062,-450.0,0.00024657,2]
[361123392,1747287059071,-450.0,0.00024657,2]
[361123393,1747287059080,-450.0,0.00024657,2]
[361123394,1747287059091,-450.0,0.00024657,2]
[361123395,1747287059102,-450.0,0.00024657,2]
[361123396,1747287059111,-450.0,0.00024657,2]
[361123397,1747287059120,-401.02318655,0.00024657,2]
[361123398,1747287059130,-450.0,0.00024657,2]
[361123399,1747287059142,-450.0,0.00024657,2]
[361123400,1747287059151,-450.0,0.00024657,2]
[361123401,1747287059160,-450.0,0.00024657,2]
[361123402,1747287059170,-404.47300377,0.00024657,2]
[361123403,1747287059266,-544.70082774,0.00024657,2]
[361123404,1747287059276,-551.7793464,0.00024657,2]
[361123405,1747287059286,-513.60636587,0.00024657,2]
[361123406,1747287059295,-450.0,0.00024657,2]
[361123407,1747287059304,-450.0,0.00024657,2]
[361123408,1747287059314,-402.38359032,0.00024657,2]
[361123409,1747287059323,-450.0,0.00024657,2]
[361123410,1747287059332,-450.0,0.00024657,2]
[361123411,1747287059342,-402.1180284,0.00024657,2]
[361123412,1747287059351,-450.0,0.00024657,2]
[361123413,1747287059360,-450.0,0.00024657,2]
[361123414,1747287059370,-404.64722047,0.00024657,2]
[361123415,1747287059379,-450.0,0.00024657,2]
[361123416,1747287059388,-450.0,0.00024657,2]
[361123417,1747287059397,-450.0,0.00024657,2]
[361123418,1747287059407,-450.0,0.00024657,2]
[361123419,1747287059416,-404.59996714,0.00024657,2]
[361123420,1747287059425,-401.27204871,0.00024657,2]
[361123421,1747287059434,-450.0,0.00024657,2]
[361123422,1747287059443,-404.00474577,0.00024657,2]
[361123423,1747287059452,-450.0,0.00024657,2]
[361123424,1747287059462,-450.0,0.00024657,2]
[361123425,1747287059471,-450.0,0.00024657,2]
[361123426,1747287059480,-450.0,0.00024657,2]
[361123427,1747287059490,-400.14227726,0.00024657,2]
[361123428,1747287059499,-450.0,0.00024657,2]
[361123429,1747287059510,-450.0,0.00024657,2]
[361123430,1747287059519,-450.0,0.00024657,2]
[361123431,1747287059528,-450.0,0.00024657,2]
[361123432,1747287059537,-401.75445303,0.00024657,2]
[361123433,1747287059547,-401.55428212,0.00024657,2]
[361123434,1747287059556,-450.0,0.00024657,2]
[361123435,1747287059565,-450.0,0.00024657,2]
[361123436,1747287059575,-450.0,0.00024657,2]
[361123437,1747287059586,-403.86191112,0.00024657,2]
[361123438,1747287059598,-450.0,0.00024657,2]
[361123439,1747287059608,-401.86088675,0.00024657,2]
[361123440,1747287059617,-200.08838688,0.00024657,2]
[361123441,1747287059629,-450.0,0.00024657,2]
[361123442,1747287059638,-450.0,0.00024657,2]
[361123443,1747287059647,-450.0,0.00024657,2]
[361123444,1747287059656,-400.18773189,0.00024657,2]
[361123445,1747287059666,-450.0,0.00024657,2]
[361123446,1747287059675,-450.0,0.00024657,2]
[361123447,1747287059684,-450.0,0.00024657,2]
[361123448,1747287059694,-450.0,0.00024657,2]
[361123449,1747287059703,-401.82526735,0.00024657,2]
[361123450,1747287059712,-306.89363536,0.00024657,2]
[361123451,1747287059723,-500.0,0.00024657,2]
[361123452,1747287059732,-450.0,0.00024657,2]
[361123453,1747287059741,-332.2447897,0.00024657,2]
[361123454,1747287059751,-450.0,0.00024657,2]
[361123455,1747287059760,-538.8900638,0.00024657,2]
[361123456,1747287059769,-450.0,0.00024657,2]
[361123457,1747287059779,-450.0,0.00024657,2]
[361123458,1747287059787,-450.0,0.00024657,2]
[361123459,1747287059797,-450.0,0.00024657,2]
[361123460,1747287059806,-450.0,0.00024657,2]
[361123461,1747287059816,-450.0,0.00024657,2]
[361123462,1747287059825,-299.2059426,0.00024657,2]
[361123463,1747287059835,-440.8026436,0.00024657,2]
[361123464,1747287059844,-450.0,0.00024657,2]
[361123465,1747287059854,-450.0,0.00024657,2]
[361123466,1747287059863,-450.0,0.00024657,2]
[361123467,1747287059873,-401.40428716,0.00024657,2]
[361123468,1747287059883,-167.31265717,0.00024657,2]
[361123469,1747287059892,-450.0,0.00024657,2]
[361123470,1747287059901,-442.32117808,0.00024657,2]
[361123471,1747287059912,-450.0,0.00024657,2]
[361123472,1747287059922,-400.0,0.00024657,2]
[361123473,1747287059931,-450.0,0.00024657,2]
[361123474,1747287059940,-450.0,0.00024657,2]
[361123475,1747287059951,-507.87807916,0.00024657,2]
[361123476,1747287059961,-450.0,0.00024657,2]
[361123477,1747287059971,-450.0,0.00024657,2]
[361123478,1747287059980,-450.0,0.00024657,2]
[361123479,1747287059990,-450.0,0.00024657,2]
[361123480,1747287060000,-404.05764315,0.00024657,2]
[361123481,1747287060010,-500.0,0.00024657,2]
[361123482,1747287060020,-500.0,0.00024657,2]
[361123483,1747287060030,-500.0,0.00024657,2]
[361123484,1747287060040,-500.0,0.00024657,2]
[361123485,1747287060050,-450.0,0.00024657,2]
[361123486,1747287060060,-500.0,0.00024657,2]
[361123487,1747287060070,-450.0,0.00024657,2]
[361123488,1747287060079,-339.27973755,0.00024657,2]
[361123489,1747287060089,-450.0,0.00024657,2]
[361123490,1747287060098,-450.0,0.00024657,2]
[361123491,1747287060107,-1991.48,0.00024657,2]
[361123492,1747287060117,-1991.48,0.00024657,2]
[361123493,1747287060127,-1991.48,0.00024657,2]
[361123494,1747287060137,-1991.48,0.00024657,2]
[361123495,1747287060146,-1991.48,0.00024657,2]
[361123496,1747287060156,-1991.48,0.00024657,2]
[361123497,1747287060166,-1991.48,0.00024657,2]
[361123498,1747287060176,-450.0,0.00024657,2]
[361123499,1747287060186,-1991.48,0.00024657,2]
[361123500,1747287060195,-1991.48,0.00024657,2]
[361123501,1747287060206,-1991.48,0.00024657,2]
[361123502,1747287060216,-1991.48,0.00024657,2]
[361123503,1747287060226,-1991.48,0.00024657,2]
[361123504,1747287060236,-1991.48,0.00024657,2]
[361123505,1747287060246,-1991.48,0.00024657,2]
[361123506,1747287060257,-1991.48,0.00024657,2]
[361123507,1747287060266,-1991.48,0.00024657,2]
[361123508,1747287060277,-1991.48,0.00024657,2]
[361123509,1747287060287,-1116.96992355,0.00024657,2]
[361123510,1747287060628,-547.849,0.00018511,2]
[361123511,1747287060638,-26.63049418,0.00021511,2]
[361123512,1747287060651,-519.36950582,0.00021511,2]
[361123513,1747287060660,-874.51007645,0.00024657,2]
[361123514,1747287060670,-136.30413998,0.00024657,2]
[361123515,1747287060681,-313.69586002,0.00024657,2]
[361123516,1747287060691,-1991.48,0.00024657,2]
[361123517,1747287060702,-1991.48,0.00024657,2]
[361123518,1747287060712,-1991.48,0.00024657,2]
[361123519,1747287060721,-1991.48,0.00024657,2]
[361123520,1747287060730,-1991.48,0.00024657,2]
[361123521,1747287060740,-1991.66351129,0.00024657,2]
[361123522,1747287060749,-500.0,0.00024657,2]
[361123523,1747287060758,-450.0,0.00024657,2]
[361123524,1747287060767,-450.0,0.00024657,2]
[361123525,1747287060777,-450.0,0.00024657,2]
[361123526,1747287060786,-450.0,0.00024657,2]
[361123527,1747287060795,-450.0,0.00024657,2]
[361123528,1747287060805,-450.0,0.00024657,2]
[361123529,1747287060814,-492.86281995,0.00024657,2]
[361123530,1747287060823,-450.0,0.00024657,2]
[361123531,1747287060833,-401.24004066,0.00024657,2]
[361123532,1747287060842,-192.48292346,0.00024657,2]
[361123533,1747287060852,-402.64219104,0.00024657,2]
[361123534,1747287060860,-450.0,0.00024657,2]
[361123535,1747287060962,-450.0,0.00024657,2]
[361123536,1747287060972,-450.0,0.00024657,2]
[361123537,1747287060982,-404.31469032,0.00024657,2]
[361123538,1747287060991,-450.0,0.00024657,2]
[361123539,1747287061001,-450.0,0.00024657,2]
[361123540,1747287061010,-402.50960682,0.00024657,2]
[361123541,1747287061020,-459.23,0.00024657,2]
[361123542,1747287061031,-450.0,0.00024657,2]
[361123543,1747287061040,-408.31832236,0.00024657,2]
[361123544,1747287061049,-450.0,0.00024657,2]
[361123545,1747287061058,-450.0,0.00024657,2]
[361123546,1747287061068,-450.0,0.00024657,2]
[361123547,1747287061077,-535.80379198,0.00024657,2]
[361123548,1747287061091,-407.77881124,0.00024657,2]
[361123549,1747287061100,-450.0,0.00024657,2]
[361123550,1747287061109,-450.0,0.00024657,2]
[361123551,1747287061119,-407.43680124,0.00024657,2]
[361123552,1747287061130,-450.0,0.00024657,2]
[361123553,1747287061140,-450.0,0.00024657,2]
[361123554,1747287061149,-510.25744969,0.00024657,2]
[361123555,1747287061160,-401.1152974,0.00024657,2]
[361123556,1747287061170,-449.43430888,0.00024657,2]
[361123557,1747287061180,-450.0,0.00024657,2]
[361123558,1747287061190,-450.0,0.00024657,2]
[361123559,1747287061199,-450.0,0.00024657,2]
[361123560,1747287061209,-401.79938504,0.00024657,2]
[361123561,1747287061218,-2158.04,0.00024657,2]
[361123562,1747287061228,-560.56075759,0.00024657,2]
[361123563,1747287061238,-450.0,0.00024657,2]
[361123564,1747287061248,-450.0,0.00024657,2]
[361123565,1747287061258,-450.0,0.00024657,2]
[361123566,1747287061267,-450.0,0.00024657,2]
[361123567,1747287061277,-362.78172173,0.00024657,2]
[361123568,1747287061286,-450.0,0.00024657,2]
[361123569,1747287061296,-499.28515903,0.00024657,2]
[361123570,1747287061305,-450.0,0.00024657,2]
[361123571,1747287061315,-450.0,0.00024657,2]
[361123572,1747287061324,-450.0,0.00024657,2]
[361123573,1747287061333,-362.66053704,0.00024657,2]
[361123574,1747287061343,-400.00000001,0.00024657,2]
[361123575,1747287061352,-450.0,0.00024657,2]
[361123576,1747287061362,-450.0,0.00024657,2]
[361123577,1747287061371,-450.0,0.00024657,2]
[361123578,1747287061381,-450.0,0.00024657,2]
[361123579,1747287061390,-450.0,0.00024657,2]
[361123580,1747287061400,-562.26118872,0.00024657,2]
[361123581,1747287061410,-812.93,0.00024657,2]
[361123582,1747287061419,-402.56891743,0.00024657,2]
[361123583,1747287061428,-450.0,0.00024657,2]
[361123584,1747287061438,-411.0197342,0.00024657,2]
[361123585,1747287061448,-450.0,0.00024657,2]
[361123586,1747287061458,-450.0,0.00024657,2]
[361123587,1747287061468,-400.65344435,0.00024657,2]
[361123588,1747287061477,-450.0,0.00024657,2]
[361123589,1747287061487,-407.89292814,0.00024657,2]
[361123590,1747287061498,-300.0,0.00024658,2]
[361123591,1747287061507,-501.33542774,0.00024673,2]
[361123592,1747287061517,-502.05440634,0.00024673,2]
[361123593,1747287061527,-521.87245864,0.00024673,2]
[361123594,1747287061536,-501.16096244,0.00024673,2]
[361123595,1747287061546,-500.32937451,0.00024673,2]
[361123596,1747287061555,-600.0,0.00024673,2]
[361123597,1747287061565,-517.23851019,0.00024673,2]
[361123598,1747287061574,-500.4548092,0.00024673,2]
[361123599,1747287061584,-501.65222005,0.00024673,2]
[361123600,1747287061593,-270.95816959,0.00024673,2]
[361123601,1747287061602,-500.30690612,0.00024673,2]
[361123602,1747287061612,-500.41633669,0.00024673,2]
[361123603,1747287061621,-500.38147143,0.00024673,2]
[361123604,1747287061630,-438.33524191,0.00024673,2]
[361123605,1747287061640,-501.54337666,0.00024673,2]
[361123606,1747287061649,-611.75475098,0.00024673,2]
[361123607,1747287061659,-500.96511317,0.00024673,2]
[361123608,1747287061668,-500.0,0.00024673,2]
[361123609,1747287061678,-500.52795841,0.00024673,2]
[361123610,1747287061688,-500.22644457,0.00024673,2]
[361123611,1747287061697,-500.39353737,0.00024673,2]
[361123612,1747287061706,-500.34284553,0.00024673,2]
[361123613,1747287061715,-500.34318317,0.00024673,2]
[361123614,1747287061725,-500.22708742,0.00024673,2]
[361123615,1747287061735,-501.52599405,0.00024673,2]
[361123616,1747287061744,-500.86509258,0.00024673,2]
[361123617,1747287061754,-500.32849556,0.00024673,2]
[361123618,1747287061763,-500.12739281,0.00024673,2]
[361123619,1747287061772,-166.07981798,0.00024673,2]
[361123620,1747287061782,-500.40824629,0.00024673,2]
[361123621,1747287061791,-176.42910758,0.00024673,2]
[361123622,1747287061800,-500.40425972,0.00024673,2]
[361123623,1747287061810,-5417.29131346,0.00024762,11]
[361123624,1747287061820,-350.0,0.00024767,2]
[361123625,1747287061829,-502.65434821,0.00024767,2]
[361123626,1747287061838,-418.97689246,0.00024767,2]
[361123627,1747287061848,-356.23198515,0.00024767,2]
[361123628,1747287061857,-450.0,0.00024767,2]
[361123629,1747287061867,-450.0,0.00024767,2]
[361123630,1747287061876,-450.0,0.00024767,2]
[361123631,1747287061885,-450.0,0.00024767,2]
[361123632,1747287061895,-450.0,0.00024767,2]
[361123633,1747287061904,-450.0,0.00024767,2]
[361123634,1747287061914,-450.0,0.00024767,2]
[361123635,1747287061923,-355.14765111,0.00024767,2]
[361123636,1747287061933,-256.46830234,0.00024767,2]
[361123637,1747287061942,-450.0,0.00024767,2]
[361123638,1747287061952,-450.0,0.00024767,2]
[361123639,1747287061961,-450.0,0.00024767,2]
[361123640,1747287061971,-450.0,0.00024767,2]
[361123641,1747287061981,-351.86053085,0.00024767,2]
[361123642,1747287061990,-450.0,0.00024767,2]
[361123643,1747287062000,-354.74875413,0.00024767,2]
[361123644,1747287062009,-351.57214979,0.00024767,2]
[361123645,1747287062019,-462.74311969,0.00024767,2]
[361123646,1747287062030,-352.46627441,0.00024767,2]
[361123647,1747287062040,-355.66295775,0.00024767,2]
[361123648,1747287062051,-356.81264337,0.00024767,2]
[361123649,1747287062061,-432.05177251,0.00024767,2]
[361123650,1747287062071,-1011.26778425,0.00024767,2]
[361123651,1747287062081,-351.28134684,0.00024767,2]
[361123652,1747287062093,-351.61779915,0.00024767,2]
[361123653,1747287062102,-354.75334832,0.00024767,2]
[361123654,1747287062110,-354.19210242,0.00024767,2]
[361123655,1747287062120,-355.96374616,0.00024767,2]
[361123656,1747287062130,-450.0,0.00024767,2]
[361123657,1747287062139,-465.39368433,0.00024767,2]
[361123658,1747287062148,-353.08654758,0.00024767,2]
[361123659,1747287062158,-353.87686421,0.00024767,2]
[361123660,1747287062167,-354.54923798,0.00024767,2]
[361123661,1747287062176,-359.10108609,0.00024767,2]
[361123662,1747287062186,-356.33689624,0.00024767,2]
[361123663,1747287062195,-353.45317973,0.00024767,2]
[361123664,1747287062206,-559.98154989,0.00024767,2]
[361123665,1747287062215,-450.0,0.00024767,2]
[361123666,1747287062225,-450.0,0.00024767,2]
[361123667,1747287062235,-355.97335346,0.00024767,2]